bitfinex-derivatives/quotes_SOLF0:USTF0_20241218
["timestamp","ask_amount","ask_price","bid_price","bid_amount"]
[1734539685767,2.4,216.54,216.4,2.4]
[1734539686168,2.3104,216.49,216.45,2.3107]
[1734539686668,2.3104,216.49,216.46,2.3106]
[1734539686864,2.3102,216.51,216.46,2.3106]
[1734539687060,2.4,216.54,216.46,2.3106]
[1734539688466,2.3103,216.5,216.46,2.3106]
[1734539691772,2.3103,216.49,216.46,2.3106]
[1734539691974,2.4,216.51,216.41,11.27764353]
[1734539692277,2.3111,216.42,216.35,11.27764353]
[1734539692479,2.4,216.43,216.36,2.3117]
[1734539692980,2.4,216.43,216.32,11.27764353]
[1734539693176,14.33474353,216.42,216.3,6.40549319]
[1734539693381,14.33474353,216.42,216.26,11.27764353]
[1734539693581,2.3119,216.35,216.3,2.3123]
[1734539693779,2.4,216.34,216.3,2.3123]
[1734539694085,2.4,216.34,216.28,2.3125]
[1734539694286,2.4,216.34,216.26,18.06695112]
[1734539694579,2.4,216.34,216.27,5.48034356]
[1734539695176,2.3116,216.38,216.27,5.48034356]
[1734539695382,2.4,216.39,216.27,5.48034356]
[1734539695582,2.4,216.39,216.28,2.4]
[1734539696388,2.4,216.39,216.26,18.06695112]
[1734539696783,1.4531,216.38,216.26,18.06695112]
[1734539696983,1.4531,216.38,216.28,2.3125]
[1734539697492,2.3121,216.33,216.28,2.3125]
[1734539697679,2.4,216.32,216.26,18.06695112]
[1734539697883,2.4,216.32,216.29,2.3124]
[1734539700185,1.4531,216.38,216.26,18.06695112]
[1734539700389,2.4,216.37,216.26,18.06695112]
[1734539700890,2.3119,216.35,216.3,2.3122]
[1734539701188,2.4,216.34,216.26,18.06695112]
[1734539701492,2.4,216.34,216.31,2.3122]
[1734539701684,2.4,216.34,216.23,0.55147]
[1734539702085,2.3123,216.31,216.26,2.3127]
[1734539702391,2.3123,216.31,216.23,0.55147]
[1734539702790,2.3123,216.31,216.25,2.3128]
[1734539702990,2.4,216.34,216.23,0.55147]
[1734539704699,1.4531,216.38,216.23,0.55147]
[1734539704994,2.4,216.37,216.23,0.55147]
[1734539705189,2.3122,216.32,216.23,0.55147]
[1734539705395,2.4,216.31,216.23,0.55147]
[1734539705791,2.4,216.32,216.23,0.55147]
[1734539705987,1.4531,216.38,216.23,0.55147]
[1734539706187,2.4,216.37,216.23,0.55147]
[1734539706486,2.3117,216.36,216.26,18.06695112]
[1734539706690,2.4,216.37,216.26,18.06695112]
[1734539706993,2.3119,216.35,216.26,18.06695112]
[1734539707188,2.4,216.37,216.26,2.3127]
[1734539707391,2.4,216.37,216.23,0.55147]
[1734539707695,2.312,216.33,216.23,0.55147]
[1734539707895,2.4,216.32,216.25,2.3128]
[1734539708194,2.4,216.33,216.23,0.55147]
[1734539708793,2.3121,216.32,216.28,2.3125]
[1734539709296,2.4,216.33,216.23,0.55147]
[1734539709794,2.9979,216.32,216.23,0.55147]
[1734539710393,2.3129,216.25,216.23,0.55147]
[1734539710596,2.4,216.25,216.23,0.55147]
[1734539711195,2.313,216.24,216.23,0.55147]
[1734539711798,2.4,216.25,216.1,18.06695112]
[1734539712199,2.4,216.25,216.12,5.59930968]
[1734539713093,2.3132,216.23,216.12,5.59930968]
[1734539713500,2.4,216.25,216.12,5.59930968]
[1734539714096,2.4,216.25,216.18,2.3136]
[1734539714295,2.4,216.24,216.12,5.59930968]
[1734539714491,2.4,216.23,216.12,5.59930968]
[1734539714896,1.5845,216.22,216.12,5.59930968]
[1734539715097,2.4,216.23,216.14,18.06695112]
[1734539715302,2.4,216.25,216.14,18.06695112]
[1734539715598,2.4,216.29,216.18,18.06695112]
[1734539716000,2.4,216.29,216.21,11.29857589]
[1734539716200,1.5845,216.3,216.21,11.29857589]
[1734539716501,3.773,216.32,216.24,11.29857589]
[1734539716696,1.4608,216.32,216.24,11.29857589]
[1734539716903,2.4,216.33,216.24,11.29857589]
[1734539717098,2.4,216.33,216.31,2.3122]
[1734539717499,11.29857589,216.32,216.17,11.29857589]
[1734539717909,11.29857589,216.29,216.14,11.29857589]
[1734539718104,3.9692,216.28,216.14,11.29857589]
[1734539718499,1.5412,216.27,216.14,11.29857589]
[1734539718699,1.5412,216.27,216.17,11.29857589]
[1734539720504,3.8539,216.27,216.23,2.313]
[1734539720707,1.5412,216.27,216.17,11.29857589]
[1734539721804,2.313,216.25,216.2,2.3134]
[1734539722107,1.5412,216.27,216.2,2.3134]
[1734539722308,2.3131,216.23,216.19,2.3135]
[1734539722508,4.7131,216.23,216.19,2.3135]
[1734539722904,4.7131,216.23,216.14,11.29857589]
[1734539722905,2.4,216.23,216.16,2.3138]
[1734539723101,2.4,216.23,216.14,11.29857589]
[1734539724413,4.7131,216.23,216.19,2.3134]
[1734539725107,2.4,216.23,216.14,11.29857589]
[1734539725409,11.29857589,216.37,216.2,11.29857589]
[1734539725713,2.3127,216.27,216.24,2.313]
[1734539725902,2.3127,216.27,216.2,13.69857589]
[1734539727410,2.3127,216.27,216.23,2.313]
[1734539727912,2.3127,216.27,216.2,13.69857589]
[1734539728107,2.3127,216.27,216.24,2.313]
[1734539728318,2.3126,216.28,216.24,2.313]
[1734539728509,1.5419,216.31,216.28,2.3125]
[1734539728710,3.9419,216.31,216.28,2.3125]
[1734539728905,2.4,216.31,216.23,11.29857589]
[1734539729615,4.7123,216.31,216.23,11.29857589]
[1734539729914,2.4,216.31,216.21,2.4]
[1734539730317,2.4,216.31,216.17,13.69857589]
[1734539730510,2.3128,216.26,216.22,2.3131]
[1734539730714,4.7128,216.26,216.22,2.3131]
[1734539730920,2.4,216.26,216.17,13.69857589]
[1734539731116,2.4,216.26,216.23,2.313]
[1734539731415,2.4,216.26,216.17,13.69857589]
[1734539731812,2.4,216.26,216.17,11.29857589]
[1734539732216,2.4,216.26,216.14,11.29857589]
[1734539732916,2.3133,216.21,216.17,2.3137]
[1734539733117,2.4,216.2,216.17,2.3137]
[1734539733620,2.4,216.2,216.18,2.3136]
[1734539734521,2.4,216.2,216.19,2.3135]
[1734539734819,1.4401,216.29,216.17,11.29857589]
[1734539734820,2.4,216.25,216.17,11.29857589]
[1734539735619,2.4,216.25,216.21,2.3132]
[1734539735819,2.4,216.25,216.17,11.29857589]
[1734539736015,2.4,216.25,216.24,2.313]
[1734539736323,2.4,216.25,216.17,11.29857589]
[1734539737118,2.4,216.25,216.23,2.313]
[1734539737426,2.4,216.28,216.2,11.29857589]
[1734539737720,2.4,216.3,216.23,11.29857589]
[1734539738124,2.4,216.3,216.2,2.4]
[1734539738125,2.4,216.33,216.26,11.29857589]
[1734539738425,1.4608,216.34,216.28,2.3125]
[1734539738426,6.1728,216.34,216.28,2.3125]
[1734539738624,6.1728,216.34,216.26,11.29857589]
[1734539739021,2.4,216.34,216.26,11.29857589]
[1734539739223,1.5884,216.37,216.29,11.29857589]
[1734539739417,3.9884,216.37,216.31,2.3122]
[1734539739617,2.3117,216.36,216.29,11.29857589]
[1734539740121,2.312,216.33,216.25,18.06816101]
[1734539740321,2.4,216.32,216.21,18.06816101]
[1734539740524,2.4,216.31,216.27,2.3125]
[1734539740719,2.4,216.32,216.21,18.06816101]
[1734539741622,2.4,216.32,216.24,2.3129]
[1734539741816,4.7121,216.32,216.21,18.06816101]
[1734539742421,4.7121,216.32,216.29,2.3124]
[1734539742621,2.4,216.32,216.21,18.06816101]
[1734539743624,2.4,216.32,216.2,20.46816101]
[1734539743824,4.7122,216.32,216.28,2.3124]
[1734539744222,2.4,216.32,216.2,20.46816101]
[1734539744420,2.4,216.32,216.24,5.56207514]
[1734539744618,2.4,216.32,216.24,23.63023615]
[1734539744827,2.4,216.32,216.31,2.3122]
[1734539745523,2.4,216.36,216.33,2.3119]
[1734539745725,2.4,216.36,216.25,2.4]
[1734539745927,4.7117,216.36,216.25,2.4]
[1734539746623,4.7117,216.36,216.31,2.3121]
[1734539747025,2.4,216.38,216.35,2.3118]
[1734539747227,2.4,216.38,216.28,18.06816101]
[1734539748324,2.3116,216.37,216.33,2.312]
[1734539748530,2.4,216.38,216.28,18.06816101]
[1734539749033,2.3117,216.36,216.31,2.3121]
[1734539749227,2.4,216.38,216.31,2.3121]
[1734539749727,2.4,216.38,216.25,2.4]
[1734539750026,2.4,216.38,216.24,5.56207514]
[1734539750532,18.06816101,216.35,216.17,25.62197276]
[1734539750734,1.5495,216.34,216.18,2.4]
[1734539751035,2.3129,216.26,216.21,2.3133]
[1734539751235,2.4,216.28,216.18,2.4]
[1734539751527,2.313,216.24,216.19,2.3134]
[1734539751734,2.313,216.24,216.18,2.4]
[1734539752032,2.4,216.28,216.17,5.61745374]
[1734539752432,2.313,216.24,216.2,2.3134]
[1734539752733,2.4,216.28,216.2,2.3134]
[1734539753229,1.4969,216.27,216.14,2.4]
[1734539753433,2.9675,216.27,216.14,2.4]
[1734539754033,2.313,216.24,216.14,2.4]
[1734539754235,2.4,216.23,216.17,2.3137]
[1734539754935,4.7132,216.23,216.13,5.59438522]
[1734539756333,2.4,216.23,216.13,5.59438522]
[1734539756639,2.9675,216.27,216.13,5.59438522]
[1734539756940,2.3129,216.26,216.21,2.3132]
[1734539757236,2.9675,216.27,216.21,2.3132]
[1734539757435,2.9675,216.27,216.13,5.59438522]
[1734539757627,2.3128,216.26,216.21,2.3132]
[1734539757832,2.3128,216.26,216.13,5.59438522]
[1734539758130,2.3128,216.26,216.18,2.3136]
[1734539758336,5.3675,216.27,216.13,5.59438522]
[1734539758639,2.3129,216.25,216.13,5.59438522]
[1734539759234,2.3129,216.25,216.21,2.3132]
[1734539760336,5.3675,216.27,216.13,5.59438522]
[1734539760543,5.3675,216.27,216.13,7.99438522]
[1734539761039,2.3133,216.22,216.13,7.99438522]
[1734539761236,5.3675,216.27,216.13,7.99438522]
[1734539761440,1.4969,216.27,216.15,18.06816101]
[1734539762044,2.3128,216.26,216.22,2.3132]
[1734539762241,1.4969,216.27,216.18,11.30163784]
[1734539762842,3.8096,216.27,216.23,2.313]
[1734539763145,1.4969,216.27,216.18,13.70163784]
[1734539763340,1.4969,216.27,216.18,2.3135]
[1734539763545,1.4969,216.27,216.15,11.30163784]
[1734539764246,2.3132,216.23,216.19,2.3135]
[1734539764439,1.4969,216.27,216.19,2.3135]
[1734539764842,1.4969,216.27,216.15,11.30163784]
[1734539765041,3.8969,216.27,216.18,11.30163784]
[1734539765344,2.4,216.27,216.18,11.30163784]
[1734539765647,2.4,216.27,216.19,2.4]
[1734539765851,2.4,216.27,216.21,11.30163784]
[1734539766047,6.96685697,216.32,216.21,11.30163784]
[1734539766345,2.4,216.31,216.21,11.30163784]
[1734539766746,2.4,216.31,216.28,2.3124]
[1734539767347,1.503,216.32,216.28,2.3124]
[1734539767549,2.4,216.32,216.3,2.3123]
[1734539768340,2.3123,216.3,216.26,2.3127]
[1734539768747,5.6847598,216.35,216.24,11.30163784]
[1734539768948,2.4,216.34,216.24,11.30163784]
[1734539769343,4.5487,216.41,216.27,11.30163784]
[1734539769344,2.3118,216.36,216.27,11.30163784]
[1734539769551,2.4,216.38,216.27,11.30163784]
[1734539769753,2.4,216.4,216.25,2.4]
[1734539769944,4.5487,216.41,216.29,11.30163784]
[1734539770144,2.4,216.4,216.29,11.30163784]
[1734539770447,2.4,216.4,216.26,11.30163784]
[1734539770747,2.3119,216.34,216.26,11.30163784]
[1734539770949,2.4,216.35,216.26,11.30163784]
[1734539771451,2.3121,216.33,216.29,2.3123]
[1734539772353,2.4,216.35,216.26,11.30163784]
[1734539773355,2.312,216.34,216.29,2.3123]
[1734539773551,4.5487,216.41,216.29,11.30163784]
[1734539773851,4.5487,216.41,216.32,11.30163784]
[1734539773852,3.1047,216.41,216.32,11.30163784]
[1734539774257,3.1047,216.41,216.35,11.30163784]
[1734539774452,11.30163784,216.49,216.35,11.30163784]
[1734539774652,12.32441806,216.48,216.35,11.30163784]
[1734539774846,5.435,216.48,216.35,11.30163784]
[1734539775153,2.4,216.47,216.41,2.3111]
[1734539775551,2.3107,216.45,216.38,11.30163784]
[1734539775749,2.4,216.47,216.38,11.30163784]
[1734539775950,2.4,216.47,216.26,11.30163784]
[1734539775951,8.06921098,216.47,216.34,11.30163784]
[1734539776255,8.06921098,216.47,216.36,2.3116]
[1734539776458,8.06921098,216.47,216.34,11.30163784]
[1734539777453,8.06921098,216.47,216.35,2.3117]
[1734539777750,8.06921098,216.47,216.34,11.30163784]
[1734539778359,5.66921098,216.47,216.34,11.30163784]
[1734539778559,2.4,216.46,216.37,11.30163784]
[1734539779054,2.3107,216.45,216.37,11.30163784]
[1734539779657,2.4,216.46,216.37,13.70163784]
[1734539779858,1.5434,216.48,216.4,11.30163784]
[1734539780154,2.4,216.5,216.46,2.3105]
[1734539780360,2.3098,216.53,216.43,13.70163784]
[1734539780660,1.5821,216.56,216.46,11.30163784]
[1734539780859,2.3093,216.58,216.54,2.3097]
[1734539781158,2.3093,216.58,216.49,11.30163784]
[1734539781159,2.4,216.6,216.52,11.30163784]
[1734539781557,2.4,216.6,216.49,11.30163784]
[1734539782153,2.4,216.6,216.48,2.4]
[1734539783157,2.4,216.6,216.49,2.3102]
[1734539783357,20.43316711,216.6,216.42,18.03316711]
[1734539783557,2.3101,216.51,216.45,2.3106]
[1734539783760,2.4,216.54,216.43,2.4]
[1734539783963,2.4,216.53,216.43,2.4]
[1734539784453,2.3099,216.52,216.47,2.3104]
[1734539784655,2.4,216.53,216.43,2.4]
[1734539784858,2.31,216.51,216.46,2.3106]
[1734539785553,4.7099,216.53,216.48,2.3103]
[1734539785954,2.4,216.53,216.42,20.43316711]
[1734539786159,2.4,216.53,216.42,2.4]
[1734539786662,2.4,216.53,216.41,2.4]
[1734539786862,2.3102,216.5,216.44,2.3107]
[1734539787054,5.62309815,216.62,216.46,18.03316711]
[1734539787259,8.02309815,216.62,216.47,2.4]
[1734539787660,2.3093,216.59,216.53,2.3098]
[1734539787860,8.02309815,216.62,216.53,2.3098]
[1734539788359,2.3091,216.6,216.53,2.3098]
[1734539788558,8.02309815,216.62,216.54,2.3096]
[1734539788964,4.709,216.61,216.5,18.03316711]
[1734539789456,2.4,216.61,216.55,2.3095]
[1734539789656,2.3092,216.59,216.55,2.3095]
[1734539789860,2.4,216.61,216.55,2.3095]
[1734539791058,2.3091,216.6,216.55,2.3095]
[1734539791863,9.48155402,216.63,216.52,2.4]
[1734539792265,9.48155402,216.63,216.5,18.03316711]
[1734539792466,9.48155402,216.63,216.51,2.31]
[1734539792867,9.48155402,216.63,216.48,2.4]
[1734539793964,2.3092,216.59,216.53,2.3098]
[1734539794166,2.4,216.59,216.48,2.4]
[1734539794864,2.3095,216.57,216.52,2.3098]
[1734539795371,2.3095,216.57,216.48,2.4]
[1734539795569,4.7092,216.59,216.5,18.03316711]
[1734539795867,2.4,216.59,216.5,18.03316711]
[1734539796067,2.3093,216.58,216.5,18.03316711]
[1734539796370,2.4,216.59,216.5,18.03316711]
[1734539796561,2.3094,216.57,216.5,18.03316711]
[1734539797266,2.4,216.59,216.5,18.03316711]
[1734539797767,2.3093,216.58,216.54,2.3096]
[1734539797967,2.4,216.59,216.5,18.03316711]
[1734539799566,2.4,216.59,216.55,2.3096]
[1734539799964,2.4,216.59,216.54,2.3097]
[1734539800265,2.4,216.59,216.48,2.4]
[1734539800465,2.3095,216.56,216.48,2.4]
[1734539800666,2.3095,216.56,216.52,2.3099]
[1734539802467,2.3096,216.55,216.52,2.3099]
[1734539802767,2.3096,216.55,216.51,2.31]
[1734539802963,2.4,216.59,216.44,2.4]
[1734539803171,2.4,216.59,216.47,2.3104]
[1734539803477,20.43316711,216.59,216.42,25.93745166]
[1734539803872,20.43316711,216.59,216.45,2.3106]
[1734539804071,11.27631587,216.57,216.45,2.3106]
[1734539804271,11.27631587,216.57,216.43,13.58721587]
[1734539804469,11.27631587,216.54,216.4,13.67631587]
[1734539804670,5.462,216.53,216.4,13.67631587]
[1734539805075,5.462,216.53,216.43,11.27631587]
[1734539805369,7.7718,216.53,216.49,2.3102]
[1734539805570,5.462,216.53,216.46,11.27631587]
[1734539807179,7.7719,216.53,216.49,2.3102]
[1734539807379,2.4,216.53,216.46,11.27631587]
[1734539807873,2.4,216.53,216.4,8.06314304]
[1734539807874,2.4,216.56,216.49,11.27631587]
[1734539808178,2.4,216.57,216.49,11.27631587]
[1734539808379,2.3095,216.57,216.53,2.3097]
[1734539808573,2.4,216.6,216.49,11.27631587]
[1734539808880,2.3092,216.59,216.52,11.27631587]
[1734539809078,2.4,216.6,216.52,11.27631587]
[1734539809381,3.1368,216.62,216.52,11.27631587]
[1734539809581,5.5368,216.62,216.52,11.27631587]
[1734539809781,5.5368,216.62,216.52,13.67631587]
[1734539810681,2.3091,216.6,216.56,2.3094]
[1734539811184,5.5368,216.62,216.52,13.67631587]
[1734539811379,5.5368,216.62,216.53,2.3097]
[1734539811883,2.3095,216.56,216.52,2.3099]
[1734539812081,2.4,216.57,216.52,2.3099]
[1734539812278,2.4,216.58,216.52,2.3099]
[1734539812582,2.3096,216.55,216.51,2.31]
[1734539812778,2.3096,216.55,216.49,11.27631587]
[1734539813473,2.4,216.58,216.49,11.27631587]
[1734539813678,2.4,216.58,216.46,11.27631587]
[1734539814484,2.3098,216.54,216.5,2.3101]
[1734539815578,2.3098,216.54,216.46,11.27631587]
[1734539815879,2.3098,216.54,216.51,2.31]
[1734539818382,2.3096,216.56,216.52,2.3099]
[1734539818588,2.4,216.58,216.49,11.27631587]
[1734539819789,2.3095,216.56,216.52,2.3098]
[1734539819988,2.3095,216.56,216.49,11.27631587]
[1734539820489,2.4,216.58,216.49,11.27631587]
[1734539820888,2.4,216.58,216.51,2.3099]
[1734539821287,2.4,216.58,216.43,25.54777697]
[1734539821492,11.27631587,216.54,216.43,25.54777697]
[1734539821686,6.9581,216.53,216.43,25.54777697]
[1734539822089,6.9581,216.53,216.44,11.27631587]
[1734539822490,5.4855,216.53,216.44,11.27631587]
[1734539822792,5.4855,216.53,216.47,11.27631587]
[1734539823092,3.9585,216.53,216.47,11.27631587]
[1734539823289,2.4,216.53,216.47,11.27631587]
[1734539823493,2.9725,216.59,216.51,11.27631587]
[1734539823687,2.4,216.62,216.54,11.27631587]
[1734539823895,2.309,216.61,216.54,11.27631587]
[1734539824493,2.309,216.61,216.56,2.3094]
[1734539824697,2.309,216.61,216.54,11.27631587]
[1734539825085,2.309,216.61,216.56,2.3095]
[1734539825286,2.3087,216.64,216.54,11.27631587]
[1734539825493,2.4,216.63,216.58,2.3092]
[1734539826387,2.9725,216.68,216.59,2.3091]
[1734539826594,2.4,216.65,216.59,2.3091]
[1734539827197,2.4,216.65,216.54,11.27631587]
[1734539827395,2.4,216.65,216.51,11.27631587]
[1734539827596,2.3093,216.59,216.53,2.3098]
[1734539827798,2.4,216.6,216.53,2.3098]
[1734539828001,2.4,216.6,216.51,11.27631587]
[1734539828795,12.59484699,216.6,216.51,11.27631587]
[1734539828995,2.9577,216.59,216.51,11.27631587]
[1734539829491,2.9577,216.59,216.53,2.3098]
[1734539829492,2.3093,216.58,216.53,2.3098]
[1734539829696,2.3093,216.58,216.51,11.27631587]
[1734539830090,2.3093,216.58,216.53,2.3097]
[1734539830293,5.2669,216.59,216.51,11.27631587]
[1734539830897,2.3094,216.57,216.51,11.27631587]
[1734539831095,2.9577,216.59,216.51,11.27631587]
[1734539831300,2.3094,216.57,216.52,2.3099]
[1734539831498,2.9577,216.59,216.51,11.27631587]
[1734539831995,5.2669,216.59,216.54,2.3096]
[1734539832201,1.5045,216.59,216.51,11.27631587]
[1734539832499,1.5045,216.59,216.55,2.3095]
[1734539832693,4.7091,216.6,216.51,11.27631587]
[1734539832694,2.4,216.6,216.51,11.27631587]
[1734539833297,2.4,216.6,216.48,11.27631587]
[1734539833600,2.4,216.6,216.48,13.67631587]
[1734539834300,2.4,216.6,216.51,11.27631587]
[1734539836497,2.3092,216.59,216.55,2.3095]
[1734539837303,2.3092,216.59,216.51,11.27631587]
[1734539837501,2.4,216.6,216.54,11.27631587]
[1734539837900,4.6148,216.76,216.6,2.309]
[1734539837901,11.27631587,216.7,216.6,2.309]
[1734539838204,2.9892,216.7,216.6,11.27631587]
[1734539838404,2.4,216.69,216.64,2.3086]
[1734539838605,2.3082,216.68,216.64,2.3086]
[1734539840402,1.4443,216.72,216.63,11.27631587]
[1734539841409,0.68719,216.73,216.63,11.27631587]
[1734539841608,2.99499,216.73,216.67,2.3083]
[1734539842011,0.68719,216.73,216.63,11.27631587]
[1734539842811,2.308,216.7,216.63,11.27631587]
[1734539843308,2.308,216.7,216.65,2.3085]
[1734539844608,0.68719,216.73,216.63,16.74211416]
[1734539844806,2.99489,216.73,216.69,2.3081]
[1734539847110,2.3082,216.69,216.65,2.3085]
[1734539847509,2.4,216.7,216.57,2.4]
[1734539847707,2.4,216.7,216.6,11.27631587]
[1734539848308,2.3084,216.67,216.62,2.3088]
[1734539848509,2.3084,216.67,216.6,11.27631587]
[1734539849109,2.3084,216.67,216.63,11.27631587]
[1734539849413,2.3081,216.69,216.63,11.27631587]
[1734539849614,0.68719,216.73,216.63,11.27631587]
[1734539849810,0.68719,216.73,216.66,11.27631587]
[1734539850215,0.68719,216.73,216.69,2.3081]
[1734539850216,2.99499,216.73,216.69,2.3081]
[1734539850413,0.68719,216.73,216.69,11.27631587]
[1734539851115,0.68719,216.73,216.72,2.3078]
[1734539851317,8.04840448,216.79,216.72,2.3078]
[1734539851609,2.3073,216.77,216.72,2.3078]
[1734539851816,2.4,216.79,216.73,2.3076]
[1734539852005,2.4,216.79,216.72,11.27631587]
[1734539852420,2.38,216.85,216.75,11.27631587]
[1734539853012,4.7154,216.88,216.78,11.27631587]
[1734539853318,2.38,216.87,216.78,11.27631587]
[1734539853517,5.53381321,216.86,216.78,11.27631587]
[1734539854418,1.22502,216.84,216.78,11.27631587]
[1734539854821,2.3067,216.83,216.78,13.58341587]
[1734539855120,1.22502,216.84,216.78,11.27631587]
[1734539858420,1.22502,216.84,216.72,11.27631587]
[1734539858624,1.22502,216.84,216.73,2.38]
[1734539858822,2.38,216.83,216.75,11.27631587]
[1734539859420,2.38,216.83,216.77,2.3072]
[1734539859421,2.3069,216.81,216.77,2.3072]
[1734539859821,1.22502,216.84,216.78,11.27631587]
[1734539860419,1.22502,216.84,216.81,2.3068]
[1734539860920,1.22502,216.84,216.78,11.27631587]
[1734539861522,2.3068,216.82,216.78,11.27631587]
[1734539862029,2.3068,216.82,216.77,2.3072]
[1734539862719,3.53162,216.84,216.79,2.307]
[1734539862927,1.22502,216.84,216.78,11.27631587]
[1734539864027,1.22502,216.84,216.81,11.27631587]
[1734539864523,1.22502,216.84,216.82,2.3067]
[1734539865523,1.22502,216.84,216.83,2.3066]
[1734539865719,3.858,216.93,216.81,24.93263174]
[1734539865921,1.478,216.93,216.86,11.27631587]
[1734539866126,2.38,216.98,216.86,11.27631587]
[1734539866430,2.38,216.98,216.89,11.27631587]
[1734539868127,4.6851,216.98,216.92,2.3056]
[1734539868328,4.6851,216.98,216.89,11.27631587]
[1734539869134,4.6851,216.98,216.92,11.27631587]
[1734539869327,2.3051,216.98,216.94,2.3054]
[1734539869531,2.3049,216.99,216.94,2.3054]
[1734539869731,2.38,217.02,216.95,11.27631587]
[1734539869932,2.38,217.02,216.96,2.3051]
[1734539870131,12.87071587,217.06,216.95,11.27631587]
[1734539870132,1.5944,217.06,216.95,11.27631587]
[1734539870428,1.5944,217.06,216.98,11.27631587]
[1734539870631,1.5944,217.06,217.0,2.3048]
[1734539870826,5.35,217.08,217.01,11.27631587]
[1734539871026,2.97,217.08,217.01,11.27631587]
[1734539871226,2.38,217.11,217.04,11.27631587]
[1734539872141,4.6837,217.11,217.04,11.27631587]
[1734539872326,4.6837,217.11,217.05,2.3043]
[1734539872528,4.5338,217.15,217.04,11.27631587]
[1734539872728,2.3035,217.13,217.08,2.304]
[1734539872928,2.38,217.14,217.04,11.27631587]
[1734539873125,2.38,217.14,217.07,11.27631587]
[1734539873329,4.5338,217.15,217.07,11.27631587]
[1734539873731,6.837,217.15,217.08,2.3039]
[1734539873927,5.3739,217.15,217.07,11.27631587]
[1734539874129,2.38,217.16,217.07,13.65631587]
[1734539874327,2.3028,217.2,217.13,13.57971587]
[1734539874527,2.3028,217.2,217.13,11.27631587]
[1734539874952,2.3028,217.19,217.13,11.27631587]
[1734539875330,1.4502,217.21,217.1,11.27631587]
[1734539875537,1.4502,217.21,217.08,2.38]
[1734539875734,1.4502,217.21,217.07,11.27631587]
[1734539876933,1.4502,217.21,217.07,16.93292362]
[1734539877636,1.4502,217.21,217.07,19.23702362]
[1734539878034,11.27631587,217.19,217.07,11.27631587]
[1734539878534,1.4502,217.21,217.1,11.27631587]
[1734539879332,2.303,217.18,217.1,11.27631587]
[1734539879538,2.38,217.17,217.1,11.27631587]
[1734539879735,2.38,217.17,217.07,11.27631587]
[1734539880038,2.38,217.17,217.04,11.27631587]
[1734539880238,13.65631587,217.17,217.04,11.27631587]
[1734539880441,2.304,217.09,217.04,11.27631587]
[1734539880635,2.38,217.12,217.01,11.27631587]
[1734539880836,6.8538,217.11,217.01,11.27631587]
[1734539881036,2.3044,217.04,217.01,11.27631587]
[1734539882131,2.3044,217.04,216.99,20.25249698]
[1734539882330,2.3044,217.04,216.99,23.34853967]
[1734539883432,2.3044,217.04,216.99,25.65343967]
[1734539883936,2.3048,217.01,216.99,17.94759698]
[1734539884140,2.3048,217.01,216.95,2.3054]
[1734539884343,2.38,217.06,216.92,17.94759698]
[1734539884537,2.3053,216.97,216.92,17.94759698]
[1734539884840,2.38,217.01,216.92,17.94759698]
[1734539885241,1.5811,217.0,216.9,7.92054919]
[1734539885938,1.5811,217.0,216.9,5.54054919]
[1734539886140,2.3057,216.92,216.88,17.94759698]
[1734539886539,2.38,216.96,216.85,2.38]
[1734539886740,2.3058,216.91,216.85,4.6863]
[1734539887240,2.38,216.96,216.84,17.94759698]
[1734539887543,2.3061,216.89,216.84,17.94759698]
[1734539887746,2.38,216.91,216.84,17.94759698]